bitfinex-derivatives/quotes_SOLF0:USTF0_20250829
["timestamp","ask_amount","ask_price","bid_price","bid_amount"]
[1756488611565,7.57,202.93,202.92,0.03748332]
[1756488611761,4.4343,202.94,202.92,0.03748332]
[1756488612061,12.0038,202.96,202.92,0.03748332]
[1756488612463,73.70211336,203.06,202.93,4.76331336]
[1756488612665,7.57,203.02,202.94,4.12576876]
[1756488612869,7.57,203.02,202.95,4.12576876]
[1756488613164,7.57,202.97,202.96,0.03360181]
[1756488613768,7.57,202.94,202.88,5.47603991]
[1756488613957,7.57,202.94,202.87,4.76331336]
[1756488614562,7.57,203.02,202.93,4.76331336]
[1756488614959,7.57,203.02,202.91,4.76331336]
[1756488615168,7.57,202.99,202.91,4.76331336]
[1756488615666,4.4334,202.98,202.91,9.19801336]
[1756488615862,4.4334,202.98,202.9,5.47603991]
[1756488615863,76.5405,202.96,202.9,5.47603991]
[1756488616071,68.9768,202.94,202.86,4.76331336]
[1756488616270,7.57,202.95,202.86,4.76331336]
[1756488616772,7.57,202.95,202.89,4.76331336]
[1756488616965,12.0041,202.95,202.89,4.76331336]
[1756488617269,0.03498683,202.93,202.87,4.4356]
[1756488617565,0.03498683,202.93,202.87,9.19891336]
[1756488617765,4.46958683,202.93,202.86,0.22]
[1756488617959,4.46958683,202.93,202.86,4.98331336]
[1756488618364,0.03498683,202.93,202.9,0.22]
[1756488619166,0.03498683,202.93,202.89,4.76331336]
[1756488619766,0.03498683,202.93,202.87,4.76331336]
[1756488620572,7.60498683,202.93,202.87,4.76331336]
[1756488621372,4.435,202.91,202.87,4.76331336]
[1756488621566,0.03498683,202.93,202.85,5.69603991]
[1756488621871,0.03498683,202.93,202.87,4.76331336]
[1756488622072,4.46938683,202.93,202.87,9.19881336]
[1756488622474,0.03498683,202.93,202.87,4.76331336]
[1756488622672,0.03498683,202.93,202.83,133.2]
[1756488622673,7.57,202.9,202.83,5.47603991]
[1756488622873,7.57,202.9,202.82,4.76331336]
[1756488623374,4.47232985,202.88,202.82,4.76331336]
[1756488623670,0.03662985,202.88,202.82,4.76331336]
[1756488624776,4.47212985,202.88,202.82,4.76331336]
[1756488625377,12.0059,202.86,202.82,4.76331336]
[1756488625874,0.03662985,202.88,202.8,5.47603991]
[1756488625875,76.571,202.87,202.8,5.47603991]
[1756488626073,7.57,202.84,202.76,10.45935327]
[1756488626478,4.4372,202.81,202.76,4.98331336]
[1756488626670,12.0072,202.81,202.76,4.98331336]
[1756488627072,4.4376,202.79,202.76,4.76331336]
[1756488627272,4.4376,202.79,202.74,5.47603991]
[1756488627472,12.0076,202.79,202.74,5.47603991]
[1756488628268,4.438,202.77,202.74,5.47603991]
[1756488628473,69.0209,202.81,202.7,5.47603991]
[1756488628474,69.0279,202.79,202.7,5.47603991]
[1756488628776,7.57,202.78,202.69,10.45935327]
[1756488628976,0.0348841,202.77,202.72,4.76331336]
[1756488629175,0.0348841,202.77,202.73,0.22]
[1756488629475,0.0348841,202.77,202.75,4.76331336]
[1756488629676,0.0348841,202.77,202.76,0.22]
[1756488630475,0.0348841,202.77,202.75,4.76331336]
[1756488630676,0.0348841,202.77,202.73,10.13473991]
[1756488630874,0.0348841,202.77,202.74,0.22]
[1756488631575,0.0348841,202.77,202.73,0.22]
[1756488631785,0.0348841,202.77,202.76,4.76331336]
[1756488632076,0.0348841,202.77,202.76,4.98331336]
[1756488633883,7.57,202.86,202.78,4.4375]
[1756488634078,7.57,202.86,202.8,4.76331336]
[1756488634581,12.005,202.91,202.8,0.22]
[1756488634776,12.005,202.91,202.82,4.76331336]
[1756488634979,7.57,202.91,202.82,4.76331336]
[1756488635174,7.57,202.91,202.84,0.03603246]
[1756488635985,4.4345,202.93,202.85,4.76331336]
[1756488636379,7.57,202.94,202.85,4.76331336]
[1756488636674,7.57,202.94,202.88,4.76331336]
[1756488637079,7.52,202.99,202.88,4.76331336]
[1756488637584,4.4326,203.02,202.91,4.99331336]
[1756488637781,7.52,203.03,202.92,4.76331336]
[1756488638383,7.52,203.0,202.95,0.03206845]
[1756488638582,4.4327,203.01,202.95,0.03206845]
[1756488640288,11.9532,202.99,202.95,0.03206845]
[1756488640880,4.4326,203.02,202.95,0.03206845]
[1756488641086,76.4635,203.04,202.95,0.03206845]
[1756488641282,4.433,203.0,202.95,0.03206845]
[1756488641482,7.52,202.99,202.95,0.03206845]
[1756488642679,11.9525,203.03,202.95,0.03206845]
[1756488642880,7.52,203.03,202.97,4.76331336]
[1756488644583,7.52,203.07,203.0,4.76331336]
[1756488644883,7.52,203.04,202.97,4.76331336]
[1756488645386,7.52,203.04,202.98,0.03495104]
[1756488646389,7.52,203.04,203.0,4.76331336]
[1756488647587,7.52,203.08,203.0,4.76331336]
[1756488647788,4.4316,203.06,203.0,4.76331336]
[1756488647987,7.52,203.08,203.0,4.76331336]
[1756488648388,7.52,203.08,203.01,0.03341645]
[1756488649285,68.8972,203.18,203.03,4.76331336]
[1756488649492,7.52,203.22,203.13,4.76331336]
[1756488649787,7.52,203.22,203.16,4.76331336]
[1756488649989,7.52,203.22,203.13,0.23]
[1756488649990,7.52,203.22,203.19,4.76331336]
[1756488650182,68.8724,203.25,203.19,4.76331336]
[1756488650381,7.52,203.18,203.15,0.03689334]
[1756488650586,7.52,203.18,203.08,0.23]
[1756488650787,7.52,203.18,203.1,4.76331336]
[1756488650988,4.4296,203.16,203.14,0.03656973]
[1756488651286,68.8798,203.23,203.14,0.03656973]
[1756488651491,7.52,203.23,203.14,0.03656973]
[1756488651689,4.429,203.19,203.14,0.03656973]
[1756488651886,11.949,203.19,203.14,0.03656973]
[1756488652087,7.52,203.24,203.14,7.86259026]
[1756488652496,76.3959,203.24,203.14,0.26656973]
[1756488653685,4.4283,203.21,203.14,0.26656973]
[1756488654086,76.3959,203.24,203.14,0.26656973]
[1756488654287,4.4291,203.18,203.14,0.03656973]
[1756488654491,7.52,203.24,203.14,0.03656973]
[1756488654687,7.52,203.24,203.14,7.63259026]
[1756488654892,7.52,203.24,203.14,12.06229026]
[1756488655194,7.52,203.24,203.14,7.63259026]
[1756488655595,4.4281,203.22,203.14,7.63259026]
[1756488656291,338.6,203.28,203.17,7.82602053]
[1756488656586,338.6,203.28,203.18,4.4288]
[1756488656587,7.52,203.28,203.18,4.4288]
[1756488656796,11.9468,203.28,203.2,7.59602053]
[1756488656991,11.9468,203.28,203.21,0.03138529]
[1756488658293,4.4264,203.31,203.21,0.03138529]
[1756488658492,7.52,203.32,203.21,0.03138529]
[1756488658695,7.52,203.32,203.2,7.59602053]
[1756488658997,7.52,203.32,203.24,0.03275273]
[1756488659193,4.4271,203.27,203.24,0.03275273]
[1756488659394,7.52,203.26,203.24,0.03275273]
[1756488660301,11.9475,203.25,203.24,0.03275273]
[1756488660491,7.52,203.25,203.24,0.03275273]
[1756488662596,68.8798,203.23,203.1,0.23]
[1756488662799,7.52,203.22,203.12,76.51282053]
[1756488662997,7.52,203.26,203.13,0.26]
[1756488663299,7.52,203.26,203.15,7.59602053]
[1756488663499,4.4279,203.24,203.15,12.02552053]
[1756488663804,7.52,203.26,203.13,0.26]
[1756488663995,0.03281408,203.22,203.13,0.26]
[1756488664194,0.03281408,203.22,203.15,7.59602053]
[1756488664397,0.03281408,203.22,203.19,0.26]
[1756488664795,0.03281408,203.22,203.21,4.6884]
[1756488666098,0.03281408,203.22,203.17,7.59602053]
[1756488666296,7.52,203.21,203.14,139.97602053]
[1756488666697,7.52,203.21,203.12,4.6904]
[1756488667098,0.03173724,203.2,203.12,0.26]
[1756488667299,0.03173724,203.2,203.12,4.6903]
[1756488667701,4.4291,203.19,203.12,0.26]
[1756488668004,4.4291,203.19,203.1,12.02682053]
[1756488668005,0.03173724,203.2,203.1,12.02682053]
[1756488668204,4.4289,203.19,203.12,4.4303]
[1756488669002,0.03173724,203.2,203.13,4.43]
[1756488669704,0.03173724,203.2,203.13,7.59602053]
[1756488669905,0.03173724,203.2,203.13,7.84602053]
[1756488670700,0.03173724,203.2,203.17,4.4291]
[1756488670901,0.03173724,203.2,203.18,0.25]
[1756488671296,0.03173724,203.2,203.11,0.25]
[1756488671499,0.03173724,203.2,203.11,7.84602053]
[1756488671806,0.03173724,203.2,203.14,7.84602053]
[1756488672209,0.03173724,203.2,203.14,0.25]
[1756488672807,0.03173724,203.2,203.16,0.25]
[1756488673007,0.03173724,203.2,203.1,0.25]
[1756488673313,7.52173724,203.2,203.1,0.25]
[1756488673704,0.03173724,203.2,203.12,7.59602053]
[1756488673901,0.03173724,203.2,203.13,0.25]
[1756488674105,0.03173724,203.2,203.15,4.4297]
[1756488674304,0.03173724,203.2,203.16,76.50072053]
[1756488674505,7.49,203.29,203.19,7.84602053]
[1756488674904,7.49,203.29,203.19,0.25]
[1756488675302,7.49,203.29,203.2,7.59602053]
[1756488675514,68.8472,203.33,203.21,7.59602053]
[1756488675806,68.8472,203.33,203.17,0.22]
[1756488675807,7.49,203.31,203.22,0.03491378]
[1756488676008,68.8506,203.32,203.22,0.03491378]
[1756488676009,7.49,203.26,203.22,0.03491378]
[1756488676216,7.49,203.31,203.22,0.03491378]
[1756488676510,11.9165,203.31,203.22,0.03491378]
[1756488676710,7.49,203.31,203.22,0.03491378]
[1756488677308,68.8577,203.3,203.22,0.03491378]
[1756488677510,7.49,203.25,203.22,0.03491378]
[1756488677706,7.49,203.24,203.22,0.03491378]
[1756488677912,68.8683,203.27,203.22,0.03491378]
[1756488678105,68.8718,203.26,203.22,0.03491378]
[1756488678309,4.4285,203.21,203.13,0.22]
[1756488678514,7.49,203.21,203.11,7.59602053]
[1756488678808,7.49,203.18,203.09,4.4311]
[1756488679308,7.49,203.18,203.1,7.59602053]
[1756488679614,0.03641731,203.16,203.1,7.59602053]
[1756488679913,0.03641731,203.16,203.08,4.6811]
[1756488680310,0.03641731,203.16,203.1,7.59602053]
[1756488680505,0.03641731,203.16,203.14,0.25]
[1756488680708,7.49,203.28,203.15,0.25]
[1756488680903,7.49,203.28,203.17,7.59602053]
[1756488681108,7.49,203.28,203.17,12.02512053]
[1756488681309,4.4274,203.26,203.17,12.02512053]
[1756488681809,68.8676,203.27,203.17,7.59602053]
[1756488682117,68.8676,203.27,203.06,85.98605092]
[1756488682118,68.8676,203.27,203.19,0.03582971]
[1756488682416,7.49,203.26,203.19,0.03582971]
[1756488682615,7.49,203.22,203.19,0.03582971]
[1756488682811,68.8577,203.3,203.19,0.03582971]
[1756488683010,7.49,203.29,203.2,7.59602053]
[1756488683409,7.49,203.29,203.18,0.25]
[1756488683605,7.49,203.29,203.17,7.59602053]
[1756488683811,7.49,203.29,203.13,88.06922215]
[1756488683812,7.49,203.26,203.14,7.59602053]
[1756488684007,0.03257389,203.25,203.14,7.59602053]
[1756488684317,0.03257389,203.25,203.18,7.59602053]
[1756488684917,0.03257389,203.25,203.23,0.29]
[1756488685513,0.03257389,203.25,203.21,7.59602053]
[1756488686318,7.52257389,203.25,203.18,12.31512053]
[1756488686516,0.03257389,203.25,203.18,7.88602053]
[1756488686718,0.03257389,203.25,203.22,0.29]
[1756488687014,0.03257389,203.25,203.17,4.34922215]
[1756488687416,0.03257389,203.25,203.19,7.59602053]
[1756488688022,0.03257389,203.25,203.19,12.02492053]
[1756488688216,0.03257389,203.25,203.19,7.59602053]
[1756488688819,0.03257389,203.25,203.18,4.4289]
[1756488689015,0.03257389,203.25,203.17,0.29]
[1756488689221,0.03257389,203.25,203.14,11.65524268]
[1756488689516,7.49,203.24,203.15,4.05922215]
[1756488689719,7.49,203.24,203.14,11.65524268]
[1756488690118,7.49,203.24,203.13,4.05922215]
[1756488690318,7.49,203.24,203.14,4.05922215]
[1756488690819,0.03586327,203.21,203.15,7.88602053]
[1756488691021,0.03586327,203.21,203.19,0.29]
[1756488691422,0.03586327,203.21,203.17,4.05922215]
[1756488691722,0.03586327,203.21,203.16,4.05922215]
[1756488691923,0.03586327,203.21,203.17,4.05922215]
[1756488692125,0.03586327,203.21,203.16,4.05922215]
[1756488692321,0.03586327,203.21,203.18,0.29]
[1756488692524,0.03586327,203.21,203.19,4.34922215]
[1756488693323,0.03586327,203.21,203.2,4.05922215]
[1756488693922,0.03586327,203.21,203.19,4.34922215]
[1756488694326,0.03586327,203.21,203.19,0.29]
[1756488694922,7.49,203.2,203.19,5.47603991]
[1756488695119,0.03586327,203.21,203.19,4.13487635]
[1756488695520,0.03586327,203.21,203.2,4.13487635]
[1756488696424,7.52586327,203.21,203.2,4.13487635]
[1756488696626,7.49,203.2,203.18,4.13487635]
[1756488696821,7.58,203.19,203.16,4.13487635]
[1756488697623,0.03586327,203.21,203.16,4.13487635]
[1756488697825,0.03586327,203.21,203.18,4.13487635]
[1756488698329,0.03586327,203.21,203.17,4.13487635]
[1756488699434,0.03586327,203.21,203.18,4.13487635]
[1756488699633,0.03586327,203.21,203.19,4.13487635]
[1756488700432,0.03586327,203.21,203.2,0.29]
[1756488700729,7.58,203.31,203.2,0.29]
[1756488700937,7.58,203.31,203.25,4.1364581]
[1756488701233,7.58,203.31,203.26,4.1364581]
[1756488701935,7.58,203.31,203.26,4.16938589]
[1756488702130,7.58,203.36,203.26,4.16938589]
[1756488702334,4.4257,203.34,203.27,4.1364581]
[1756488703236,4.4257,203.34,203.28,4.1364581]
[1756488703438,4.4257,203.34,203.27,4.1364581]
[1756488703738,4.426,203.33,203.27,4.1364581]
[1756488704035,7.58,203.36,203.26,4.16938589]
[1756488704638,68.8183,203.42,203.3,0.29]
[1756488704838,7.58,203.43,203.31,4.1364581]
[1756488705038,4.4249,203.38,203.31,4.1364581]
[1756488705236,7.58,203.43,203.31,4.1364581]
[1756488705541,7.58,203.43,203.35,0.03373737]
[1756488705844,4.4244,203.4,203.35,0.32373737]
[1756488706039,7.58,203.43,203.35,0.32373737]
[1756488706639,4.4243,203.41,203.35,0.32373737]
[1756488707037,7.58,203.43,203.35,0.32373737]
[1756488707237,4.4237,203.43,203.35,7.9197579]
[1756488707443,7.58,203.48,203.38,7.59602053]
[1756488707837,4.4232,203.46,203.37,7.59602053]
[1756488708041,7.58,203.47,203.35,4.1364581]
[1756488708344,12.003,203.47,203.41,0.03209103]
[1756488708737,7.58,203.47,203.41,0.03209103]
[1756488708941,12.0035,203.44,203.41,0.03209103]
[1756488709542,4.4239,203.43,203.41,0.03209103]
[1756488709744,12.0039,203.43,203.41,0.03209103]
[1756488709944,7.58,203.48,203.41,0.03209103]
[1756488710144,4.4232,203.46,203.41,0.32209103]
[1756488710342,77.2243098,203.51,203.41,0.32209103]
[1756488710538,4.423,203.47,203.41,0.32209103]
[1756488712844,4.4224,203.49,203.41,0.32209103]
[1756488713545,12.002,203.51,203.42,7.59602053]
[1756488713747,12.002,203.51,203.41,0.32209103]
[1756488713748,7.58,203.51,203.45,7.59602053]
[1756488713947,4.4215,203.53,203.45,7.59602053]
[1756488714340,7.58,203.55,203.45,7.59602053]
[1756488714540,7.58,203.55,203.47,0.03478354]
[1756488715141,12.0011,203.55,203.47,0.03478354]
[1756488715742,4.4206,203.57,203.48,7.59602053]
[1756488716341,7.58,203.59,203.51,7.59602053]
[1756488716945,131.74,203.63,203.51,7.59602053]
[1756488717249,4.4201,203.6,203.54,7.59602053]
[1756488717650,139.32,203.63,203.55,0.03148672]
[1756488717857,7.58,203.63,203.55,0.03148672]
[1756488718447,7.58,203.63,203.56,7.59602053]
[1756488718747,7.58,203.63,203.55,0.03148672]
[1756488719248,11.9995,203.63,203.55,4.45248672]
[1756488719449,7.58,203.63,203.55,4.45248672]
[1756488720146,68.7613,203.59,203.44,0.33]
[1756488720348,76.3508,203.56,203.44,0.33]
[1756488720650,7.58,203.52,203.4,0.33]
[1756488721550,0.03189348,203.48,203.41,7.59602053]
[1756488721851,0.03189348,203.48,203.47,7.92602053]
[1756488722251,0.03189348,203.48,203.47,8.42602053]
[1756488722448,0.03189348,203.48,203.47,0.33]
[1756488723150,0.03189348,203.48,203.45,7.59602053]
[1756488723352,0.03189348,203.48,203.42,7.92602053]
[1756488723746,0.03189348,203.48,203.43,7.59602053]
[1756488723947,0.03189348,203.48,203.43,7.92602053]
[1756488724150,0.03189348,203.48,203.39,7.59602053]
[1756488724752,7.58,203.5,203.39,7.59602053]
[1756488724947,4.4224,203.49,203.38,0.33]
[1756488725149,0.03144832,203.47,203.38,0.33]
[1756488725951,0.03144832,203.47,203.39,7.59602053]
[1756488726151,0.03144832,203.47,203.42,7.59602053]
[1756488726347,0.03144832,203.47,203.38,7.59602053]
[1756488726652,7.58,203.49,203.37,0.33]
[1756488726849,0.03231337,203.45,203.37,0.33]
[1756488727043,8.02231337,203.45,203.34,7.59602053]
[1756488727247,7.99,203.45,203.34,7.59602053]
[1756488728454,68.8035,203.46,203.33,330.28]
[1756488728645,68.8139,203.43,203.3,7.59602053]
[1756488728851,7.99,203.42,203.28,82.72]
[1756488729046,7.99,203.42,203.31,4.4261]
[1756488729749,7.99,203.38,203.28,82.72]
[1756488730349,7.99,203.35,203.23,7.59602053]
[1756488730951,7.99,203.35,203.21,0.31]
[1756488731259,7.99,203.33,203.23,4.4279]
[1756488731445,7.99,203.33,203.21,69.1966]
[1756488731650,7.99,203.33,203.21,76.79262053]
[1756488731850,7.99,203.33,203.23,4.428]
[1756488732055,7.99,203.3,203.16,0.31]
[1756488732455,7.99,203.25,203.16,0.31]
[1756488733153,7.99,203.31,203.18,68.8977]
[1756488733351,7.99,203.31,203.22,0.31]
[1756488733352,0.03106421,203.23,203.22,0.31]
[1756488733752,7.99,203.31,203.24,4.4277]
[1756488733957,7.99,203.31,203.23,76.47632053]
[1756488734158,7.99,203.38,203.26,7.59602053]
[1756488734361,0.03149138,203.3,203.28,4.4269]
[1756488734552,0.03149138,203.3,203.29,0.31]
[1756488734757,7.99,203.38,203.29,0.31]
[1756488735259,7.99,203.38,203.29,7.90602053]
[1756488735464,7.99,203.35,203.25,7.59602053]
[1756488736256,7.99,203.35,203.28,0.03307582]
[1756488736455,0.03733505,203.36,203.28,0.03307582]
[1756488736957,8.02733505,203.36,203.28,0.03307582]
[1756488739255,12.45253505,203.36,203.28,0.03307582]
[1756488739451,68.8437,203.34,203.28,0.03307582]
[1756488739655,68.8506,203.32,203.18,0.34]
[1756488739953,4.4267,203.3,203.18,0.34]
[1756488740154,7.99,203.31,203.16,12.32711983]
[1756488740349,7.99,203.32,203.14,12.32711983]
[1756488740553,63.42,203.33,203.14,12.32711983]
[1756488740754,7.99,203.32,203.14,12.32711983]
[1756488740954,4.4278,203.25,203.14,12.32711983]
[1756488741457,7.99,203.26,203.14,12.32711983]
[1756488741663,0.03228724,203.22,203.14,12.32711983]
[1756488742663,0.03228724,203.22,203.12,131.93]
[1756488743260,8.02228724,203.22,203.12,0.37]
[1756488743460,0.03228724,203.22,203.12,0.37]
[1756488744356,0.03228724,203.22,203.13,131.56]
[1756488744860,0.03228724,203.22,203.14,0.37]
[1756488745163,0.03228724,203.22,203.14,12.69711983]
[1756488746061,0.03228724,203.22,203.14,12.32711983]
[1756488746268,0.03228724,203.22,203.15,0.37]
[1756488746755,0.03228724,203.22,203.18,12.32711983]
[1756488747163,338.47,203.34,203.2,68.8888]
[1756488747465,342.8958,203.34,203.24,4.4276]
[1756488747861,12.4158,203.34,203.25,4.4274]
[1756488748163,7.99,203.34,203.24,68.8768]
[1756488748472,0.03360714,203.32,203.24,68.8768]
[1756488748662,0.03360714,203.32,203.28,4.4268]
[1756488749270,0.03360714,203.32,203.22,131.54]
[1756488750465,0.03360714,203.32,203.23,4.4278]
[1756488751067,12.4164,203.31,203.22,131.54]
[1756488751464,7.99,203.31,203.24,4.4276]
[1756488751670,0.03360714,203.32,203.23,69.2498]
[1756488752368,0.03360714,203.32,203.27,4.4269]
[1756488752671,0.03360714,203.32,203.24,69.247]
[1756488752866,0.03360714,203.32,203.28,4.4267]
[1756488753169,0.03360714,203.32,203.24,0.37]
[1756488754868,0.03360714,203.32,203.29,0.37]
[1756488755169,0.03360714,203.32,203.27,81.19281983]
[1756488755369,0.03360714,203.32,203.29,0.37]
[1756488755577,0.03360714,203.32,203.3,4.7962]
[1756488755974,0.03360714,203.32,203.25,4.4275]
[1756488756570,4.45960714,203.32,203.24,0.37]
[1756488756767,4.45960714,203.32,203.22,4.428]
[1756488756768,7.86,203.31,203.22,4.428]
[1756488756968,7.86,203.31,203.21,87.72]
[1756488757367,7.86,203.31,203.23,4.4278]
[1756488757566,7.86,203.31,203.21,87.72]
[1756488757777,0.03776029,203.28,203.24,0.35]
[1756488758067,0.03776029,203.28,203.26,12.01585937]
[1756488758271,4.4252,203.36,203.27,0.35]
[1756488758468,0.03671718,203.29,203.26,7.58875937]
[1756488758774,4.4256,203.34,203.26,7.58875937]
[1756488758968,7.86,203.37,203.26,7.58875937]
[1756488759172,0.03514279,203.3,203.26,7.93875937]
[1756488759574,0.03514279,203.3,203.28,4.4267]
[1756488759874,0.03514279,203.3,203.28,4.7767]
[1756488761174,0.03514279,203.3,203.28,4.4267]
[1756488761371,0.03514279,203.3,203.29,7.93875937]
[1756488762774,7.86,203.37,203.29,7.93875937]
[1756488763374,7.86,203.37,203.3,4.4264]
[1756488763575,7.86,203.37,203.27,131.45402531]
[1756488763881,7.86,203.37,203.27,131.42]
[1756488764080,7.86,203.37,203.3,0.03349652]
[1756488764577,7.86,203.33,203.3,0.03349652]
[1756488764980,7.86,203.36,203.3,0.03349652]
[1756488766679,7.86,203.31,203.21,49.2]
[1756488767073,7.86,203.27,203.19,7.58875937]
[1756488767278,7.86,203.27,203.16,4.10208177]
[1756488767580,7.86,203.27,203.15,4.10208177]
[1756488768073,0.03104579,203.24,203.15,4.10208177]
[1756488768280,0.03104579,203.24,203.16,4.10208177]
[1756488768679,4.45894579,203.24,203.16,8.53148177]
[1756488769083,4.45894579,203.24,203.17,4.10208177]
[1756488769687,7.86,203.23,203.12,4.10208177]
[1756488770183,7.86,203.23,203.13,4.10208177]
[1756488770385,0.0365759,203.2,203.13,4.10208177]
[1756488771082,7.86,203.19,203.13,4.10208177]
[1756488771285,7.86,203.19,203.12,4.10208177]
[1756488771585,7.86,203.19,203.09,4.10208177]
[1756488771885,7.86,203.19,203.07,4.10208177]
[1756488772185,7.86,203.19,203.05,4.10208177]
[1756488772376,7.86,203.19,203.06,4.10208177]
[1756488772573,7.86,203.13,203.07,4.10208177]
[1756488772784,4.431,203.09,203.03,4.10208177]
[1756488772990,7.86,203.13,203.02,4.10208177]
[1756488773281,7.86,203.13,203.01,4.49208177]
[1756488774079,12.2903,203.13,203.01,4.49208177]
[1756488774387,7.86,203.13,203.02,4.10208177]
[1756488774882,7.86,203.18,203.05,4.10208177]
[1756488775184,4.4293,203.17,203.04,11.69084114]
[1756488775683,4.4298,203.15,203.04,11.69084114]
[1756488775884,7.86,203.14,203.03,4.49208177]
[1756488776284,7.86,203.14,203.04,7.58875937]
[1756488776481,7.86,203.14,203.04,11.69084114]
[1756488776879,7.86,203.14,203.05,4.10208177]
[1756488777482,7.86,203.14,203.04,7.58875937]
[1756488777874,7.86,203.14,203.03,0.39]
[1756488778093,7.86,203.14,203.04,68.9428]
[1756488778591,7.86,203.14,203.05,4.4317]
[1756488778781,7.86,203.14,203.03,4.49208177]
[1756488778982,4.4302,203.13,203.03,4.49208177]
[1756488779182,7.86,203.14,203.03,0.39]
[1756488780389,7.86,203.14,203.05,68.9407]
[1756488780686,4.429,203.19,203.07,0.39]
[1756488780883,7.86,203.18,203.07,0.39]
[1756488781284,7.86,203.16,203.03,12.08084114]
[1756488781486,7.86,203.16,203.03,7.97875937]
[1756488781685,7.86,203.16,203.03,12.08084114]
[1756488782587,7.86,203.16,203.06,7.58875937]
[1756488782982,7.86,203.16,203.07,0.39]
[1756488783186,0.03258955,203.13,203.07,0.39]
[1756488783487,0.03258955,203.13,203.1,0.39]
[1756488783886,0.03258955,203.13,203.09,7.58875937]
[1756488784086,0.03258955,203.13,203.12,7.97875937]
[1756488784589,0.03258955,203.13,203.09,7.58875937]
[1756488784790,7.89258955,203.13,203.06,7.58875937]
[1756488785690,7.89258955,203.13,203.04,0.39]
[1756488785890,7.89258955,203.13,203.01,131.34]
[1756488786090,4.4305,203.12,203.01,138.92875937]
[1756488786389,7.89258955,203.13,203.01,143.03084114]
[1756488786685,7.86,203.13,203.04,7.97875937]
[1756488787394,7.86,203.13,203.01,138.92875937]
[1756488788093,4.4305,203.12,203.01,138.92875937]
[1756488789894,4.4305,203.12,203.04,4.432]
[1756488793494,76.4476,203.24,203.11,4.4304]
[1756488794089,4.4288,203.2,203.12,4.4302]
[1756488794295,68.8907,203.2,203.09,0.4]
[1756488794500,7.57,203.19,203.06,7.58875937]
[1756488794797,4.4291,203.18,203.08,0.4]
[1756488794997,7.57,203.19,203.09,7.58875937]
[1756488796896,7.57,203.19,203.12,0.03136855]
[1756488797095,0.0310392,203.16,203.12,0.03136855]
[1756488797498,0.0310392,203.16,203.12,4.46156855]
[1756488797794,0.0310392,203.16,203.12,0.03136855]
[1756488798495,7.57,203.15,203.12,0.03136855]
[1756488798696,0.0310392,203.16,203.12,0.42136855]
[1756488799102,0.0310392,203.16,203.13,0.39]
[1756488799692,0.0310392,203.16,203.12,7.62012792]
[1756488799693,0.0310392,203.16,203.14,4.8198]
[1756488800493,0.0310392,203.16,203.12,4.46176855]
[1756488800904,7.6010392,203.16,203.12,4.46176855]
[1756488801501,7.6010392,203.16,203.12,0.03136855]
[1756488801700,7.57,203.15,203.12,0.03136855]
[1756488802007,0.0310392,203.16,203.12,0.03136855]
[1756488802205,0.0310392,203.16,203.12,4.46166855]
[1756488802398,0.0310392,203.16,203.12,0.42136855]
[1756488802597,0.0310392,203.16,203.12,0.03136855]
[1756488802806,0.0310392,203.16,203.13,0.39]
[1756488803208,0.0310392,203.16,203.12,4.46166855]
[1756488803503,0.0310392,203.16,203.12,4.85166855]
[1756488803703,0.0310392,203.16,203.14,4.4299]
[1756488803908,0.0310392,203.16,203.15,0.39]
[1756488804505,0.0310392,203.16,203.14,4.4299]
[1756488804700,0.0310392,203.16,203.13,7.58875937]
[1756488805711,0.0310392,203.16,203.14,4.8198]
[1756488806606,0.0310392,203.16,203.14,4.4298]
[1756488806808,0.0310392,203.16,203.12,4.46166855]
[1756488807608,7.57,203.15,203.12,0.03136855]
[1756488807809,0.0310392,203.16,203.12,0.03136855]
[1756488808008,7.6010392,203.16,203.12,0.03136855]